lending/lending_fUSD_20250425
["ID","MTS","AMOUNT","RATE_DAILY","PERIOD"]
[358979613,1745599873420,-779.36,0.00030684,2]
[358979614,1745599873430,-500.0,0.00030684,2]
[358979615,1745599873439,-500.0,0.00030684,2]
[358979616,1745599873450,-609.87,0.00030684,2]
[358979617,1745599873459,-943.34,0.00030684,2]
[358979618,1745599873469,-500.0,0.00030684,2]
[358979619,1745599873478,-500.0,0.00030684,2]
[358979620,1745599873487,-873.68,0.00030684,2]
[358979621,1745599873496,-500.0,0.00030684,2]
[358979622,1745599873506,-1522.7742,0.00030684,7]
[358979623,1745599873515,-500.0,0.00030684,2]
[358979624,1745599873524,-595.02,0.00030684,2]
[358979625,1745599873533,-626.11,0.00030684,2]
[358979626,1745599873543,-989.79,0.00030684,2]
[358979627,1745599873552,-1069.54,0.00030684,2]
[358979628,1745599873561,-500.0,0.00030684,2]
[358979629,1745599873572,-500.0,0.00030684,2]
[358979630,1745599873581,-1522.7742,0.00030684,7]
[358979631,1745599873590,-500.0,0.00030684,2]
[358979632,1745599873599,-1019.56,0.00030684,2]
[358979633,1745599873608,-500.0,0.00030684,2]
[358979634,1745599873618,-1055.91,0.00030684,2]
[358979635,1745599873627,-151.0,0.00030684,7]
[358979636,1745599873636,-500.0,0.00030684,2]
[358979637,1745599873645,-500.0,0.00030684,2]
[358979638,1745599873654,-500.0,0.00030684,2]
[358979639,1745599873663,-500.0,0.00030684,2]
[358979640,1745599873672,-500.0,0.00030684,2]
[358979641,1745599873683,-500.0,0.00030684,2]
[358979642,1745599873693,-500.0,0.00030684,2]
[358979643,1745599873702,-669.87,0.00030684,2]
[358979644,1745599873711,-500.0,0.00030684,2]
[358979645,1745599873721,-500.0,0.00030684,2]
[358979646,1745599873730,-500.0,0.00030684,2]
[358979647,1745599873740,-500.0,0.00030684,2]
[358979648,1745599873749,-500.0,0.00030684,2]
[358979649,1745599873759,-5439.41,0.00030684,2]
[358979650,1745599873769,-500.0,0.00030684,2]
[358979651,1745599873778,-714.61,0.00030684,2]
[358979652,1745599873787,-546.43262398,0.00030684,2]
[358979653,1745599873799,-500.0,0.00030684,2]
[358979654,1745599873808,-672.15,0.00030684,2]
[358979655,1745599873818,-869.52,0.00030684,2]
[358979656,1745599873827,-500.0,0.00030684,2]
[358979657,1745599873838,-1185.63,0.00030684,2]
[358979658,1745599873847,-500.0,0.00030684,2]
[358979659,1745599873857,-500.0,0.00030684,2]
[358979660,1745599873866,-500.0,0.00030684,2]
[358979661,1745599873876,-500.0,0.00030684,2]
[358979662,1745599873886,-500.0,0.00030684,2]
[358979663,1745599873895,-983.15,0.00030684,2]
[358979664,1745599873905,-234.12436333,0.00030684,2]
[358979665,1745599873916,-500.0,0.00030684,2]
[358979666,1745599873926,-500.0,0.00030684,2]
[358979667,1745599874142,-500.0,0.00030684,2]
[358979668,1745599874153,-500.0,0.00030684,2]
[358979669,1745599874163,-542.2,0.00030684,2]
[358979670,1745599874173,-151.0,0.00030684,7]
[358979671,1745599874183,-500.0,0.00030684,2]
[358979672,1745599874193,-500.0,0.00030684,2]
[358979673,1745599874203,-595.07,0.00030684,2]
[358979674,1745599874213,-500.0,0.00030684,2]
[358979675,1745599874223,-500.0,0.00030684,2]
[358979676,1745599874233,-554.80912551,0.00030684,2]
[358979677,1745599874243,-1018.29,0.00030684,2]
[358979678,1745599874253,-795.68,0.00030684,2]
[358979679,1745599874263,-2152.1,0.00030684,2]
[358979680,1745599874272,-500.0,0.00030684,2]
[358979681,1745599874282,-609.02290865,0.00030684,2]
[358979682,1745599874292,-146122.56324178,0.00030684,2]
[358979683,1745599874877,-2778.59990651,0.00030684,2]
[358979684,1745599874891,-423.21104494,0.00030684,2]
[358979685,1745599874903,-3299.1,0.00030684,2]
[358979686,1745599874938,-6426.12227267,0.00030684,2]
[358979687,1745599874952,-9801.39214175,0.00030684,2]
[358979688,1745599874965,-261.92,0.00030684,2]
[358979689,1745599874988,-1111.59726643,0.00030684,2]
[358979690,1745599875455,-1101.075001,0.00025215,2]
[358979691,1745599875467,-12728.01384592,0.00025215,2]
[358979692,1745599875477,-178505.59412592,0.00030684,2]
[358979693,1745599875489,-500.0,0.00030684,2]
[358979694,1745599875500,-669.94,0.00030684,2]
[358979695,1745599875510,-500.0,0.00030684,2]
[358979696,1745599875520,-618.93,0.00030684,2]
[358979697,1745599875529,-500.0,0.00030684,2]
[358979698,1745599875538,-151.0,0.00030684,7]
[358979699,1745599875548,-500.0,0.00030684,2]
[358979700,1745599875561,-1022.67,0.00030684,2]
[358979701,1745599875572,-577.05063923,0.00030684,2]
[358979702,1745599875584,-500.0,0.00030684,2]
[358979703,1745599875595,-500.0,0.00030684,2]
[358979704,1745599875605,-988.92,0.00030684,2]
[358979705,1745599875614,-1098.22,0.00030684,2]
[358979706,1745599875623,-500.0,0.00030684,2]
[358979707,1745599875633,-572.07,0.00030684,2]
[358979708,1745599875642,-500.0,0.00030684,2]
[358979709,1745599875651,-632.24,0.00030684,2]
[358979710,1745599875661,-856.07,0.00030684,2]
[358979711,1745599875670,-2047.35,0.00030684,2]
[358979712,1745599875679,-1466.24,0.00030684,2]
[358979713,1745599875689,-500.0,0.00030684,2]
[358979714,1745599875699,-782.3,0.00030684,2]
[358979715,1745599875708,-500.0,0.00030684,2]
[358979716,1745599875718,-776.92,0.00030684,2]
[358979717,1745599875728,-500.0,0.00030684,2]
[358979718,1745599875738,-500.0,0.00030684,2]
[358979719,1745599875747,-1119.8,0.00030684,2]
[358979720,1745599875757,-500.0,0.00030684,2]
[358979721,1745599875766,-500.0,0.00030684,2]
[358979722,1745599875775,-985.68,0.00030684,2]
[358979723,1745599875784,-500.0,0.00030684,2]
[358979724,1745599875796,-1113.66,0.00030684,2]
[358979725,1745599875806,-952.26,0.00030684,2]
[358979726,1745599875815,-587.61,0.00030684,2]
[358979727,1745599875824,-500.0,0.00030684,2]
[358979728,1745599875833,-1207.25,0.00030684,2]
[358979729,1745599875843,-500.0,0.00030684,2]
[358979730,1745599875856,-500.0,0.00030684,2]
[358979731,1745599875867,-500.0,0.00030684,2]
[358979732,1745599875877,-766.4,0.00030684,2]
[358979733,1745599875887,-1110.54,0.00030684,2]
[358979734,1745599875896,-500.0,0.00030684,2]
[358979735,1745599875906,-500.0,0.00030684,2]
[358979736,1745599875916,-749.42,0.00030684,2]
[358979737,1745599875924,-500.0,0.00030684,2]
[358979738,1745599875935,-904.12,0.00030684,2]
[358979739,1745599875946,-500.0,0.00030684,2]
[358979740,1745599875956,-500.0,0.00030684,2]
[358979741,1745599875965,-500.0,0.00030684,2]
[358979742,1745599875974,-500.0,0.00030684,2]
[358979743,1745599875983,-813.8,0.00030684,2]
[358979744,1745599875993,-500.0,0.00030684,2]
[358979745,1745599876002,-500.0,0.00030684,2]
[358979746,1745599876014,-500.0,0.00030684,2]
[358979747,1745599876023,-1235.79,0.00030684,2]
[358979748,1745599876033,-500.0,0.00030684,2]
[358979749,1745599876042,-1008.46,0.00030684,2]
[358979750,1745599876051,-500.0,0.00030684,2]
[358979751,1745599876060,-1062.37,0.00030684,2]
[358979752,1745599876069,-522.25502873,0.00030684,2]
[358979753,1745599876078,-707.65,0.00030684,2]
[358979754,1745599876087,-500.0,0.00030684,2]
[358979755,1745599876096,-1117.03,0.00030684,2]
[358979756,1745599876105,-167.4933552,0.00030684,2]
[358979757,1745599876332,-500.0,0.00030684,2]
[358979758,1745599876345,-1060.87,0.00030684,2]
[358979759,1745599876356,-229.015322,0.00030684,2]
[358979760,1745599876366,-500.0,0.00030684,2]
[358979761,1745599876376,-770.13,0.00030684,2]
[358979762,1745599876386,-500.0,0.00030684,2]
[358979763,1745599876396,-500.0,0.00030684,2]
[358979764,1745599876406,-500.0,0.00030684,2]
[358979765,1745599876415,-151.0,0.00030684,7]
[358979766,1745599876425,-229.015322,0.00030684,2]
[358979767,1745599876434,-500.0,0.00030684,2]
[358979768,1745599876445,-1888.49,0.00030684,2]
[358979769,1745599876455,-500.0,0.00030684,2]
[358979770,1745599876465,-500.0,0.00030684,2]
[358979771,1745599876475,-670.74,0.00030684,2]
[358979772,1745599876485,-500.0,0.00030684,2]
[358979773,1745599876495,-500.0,0.00030684,2]
[358979774,1745599876505,-6666.66,0.00030684,2]
[358979775,1745599876515,-151.0,0.00030684,7]
[358979776,1745599876524,-500.0,0.00030684,2]
[358979777,1745599876534,-378.84223966,0.00030684,2]
[358979778,1745599876545,-500.0,0.00030684,2]
[358979779,1745599876556,-500.0,0.00030684,2]
[358979780,1745599876566,-996.13,0.00030684,2]
[358979781,1745599876575,-614.16,0.00030684,2]
[358979782,1745599876585,-500.0,0.00030684,2]
[358979783,1745599876596,-557.66,0.00030684,2]
[358979784,1745599876606,-500.0,0.00030684,2]
[358979785,1745599876617,-1208.07,0.00030684,2]
[358979786,1745599876628,-500.0,0.00030684,2]
[358979787,1745599876637,-1187.16,0.00030684,2]
[358979788,1745599876648,-500.0,0.00030684,2]
[358979789,1745599876659,-500.0,0.00030684,2]
[358979790,1745599876670,-500.0,0.00030684,2]
[358979791,1745599876680,-811.13,0.00030684,2]
[358979792,1745599876692,-928.52,0.00030684,2]
[358979793,1745599876701,-1045.74,0.00030684,2]
[358979794,1745599876712,-500.0,0.00030684,2]
[358979795,1745599876721,-500.0,0.00030684,2]
[358979796,1745599876731,-849.84,0.00030684,2]
[358979797,1745599876741,-1818.74,0.00030684,2]
[358979798,1745599876751,-737.09,0.00030684,2]
[358979799,1745599876760,-50.81754252,0.00030684,2]
[358979800,1745599876775,-449.18245748,0.00030684,2]
[358979801,1745599876786,-500.0,0.00030684,2]
[358979802,1745599876800,-500.0,0.00030684,2]
[358979803,1745599876810,-500.0,0.00030684,2]
[358979804,1745599876820,-166.14937027,0.00030684,2]
[358979805,1745599876832,-333.85062973,0.00030684,2]
[358979806,1745599876843,-34.31936027,0.00030684,2]
[358979807,1745599876856,-465.68063973,0.00030684,2]
[358979808,1745599876866,-220.72751089,0.00030684,2]
[358979809,1745599876879,-279.27248911,0.00030684,2]
[358979810,1745599876892,-143.28680294,0.00030684,2]
[358979811,1745599877235,-838.25319706,0.00030684,2]
[358979812,1745599877245,-500.0,0.00030684,2]
[358979813,1745599877254,-500.0,0.00030684,2]
[358979814,1745599877264,-500.0,0.00030684,2]
[358979815,1745599877273,-299.32357994,0.00030684,2]
[358979816,1745599877285,-200.67642006,0.00030684,2]
[358979817,1745599877295,-557.106122,0.00030684,2]
[358979818,1745599877304,-933.85338292,0.00030684,2]
[358979819,1745599877316,-181.01661708,0.00030684,2]
[358979820,1745599877326,-500.0,0.00030684,2]
[358979821,1745599877336,-500.0,0.00030684,2]
[358979822,1745599877346,-823.83,0.00030684,2]
[358979823,1745599877356,-500.0,0.00030684,2]
[358979824,1745599877366,-686.54615064,0.00030684,2]
[358979825,1745599877596,-396.54718579,0.00030684,2]
[358979826,1745599877624,-341.86579367,0.00030684,2]
[358979827,1745599878314,-5422.2108699,0.00030684,2]
[358979828,1745599878333,-500.0,0.00030684,2]
[358979829,1745599878352,-500.0,0.00030684,2]
[358979830,1745599878372,-500.0,0.00030684,2]
[358979831,1745599878390,-500.0,0.00030684,2]
[358979832,1745599878409,-500.0,0.00030684,2]
[358979833,1745599878427,-423.8387133,0.00030684,2]
[358979834,1745599878447,-500.0,0.00030684,2]
[358979835,1745599878465,-500.0,0.00030684,2]
[358979836,1745599878483,-1185.34,0.00030684,2]
[358979837,1745599878502,-906.23,0.00030684,2]
[358979838,1745599878521,-198.55151447,0.00030684,2]
[358979839,1745599878540,-500.0,0.00030684,2]
[358979840,1745599878558,-500.0,0.00030684,2]
[358979841,1745599878578,-500.0,0.00030684,2]
[358979842,1745599878596,-500.0,0.00030684,2]
[358979843,1745599878615,-1283.1,0.00030684,2]
[358979844,1745599878634,-542.03,0.00030684,2]
[358979845,1745599878653,-520.83,0.00030684,2]
[358979846,1745599878670,-620.36,0.00030684,2]
[358979847,1745599878688,-750.36,0.00030684,2]
[358979848,1745599878706,-500.0,0.00030684,2]
[358979849,1745599878723,-500.0,0.00030684,2]
[358979850,1745599878742,-500.0,0.00030684,2]
[358979851,1745599878760,-500.0,0.00030684,2]
[358979852,1745599878777,-500.0,0.00030684,2]
[358979853,1745599878796,-1549.99,0.00030684,2]
[358979854,1745599878815,-152.369031,0.00030684,7]
[358979855,1745599878832,-500.0,0.00030684,2]
[358979856,1745599878850,-171.549012,0.00030684,2]
[358979857,1745599878867,-500.0,0.00030684,2]
[358979858,1745599878885,-500.0,0.00030684,2]
[358979859,1745599878902,-500.0,0.00030684,2]
[358979860,1745599878920,-500.0,0.00030684,2]
[358979861,1745599878939,-500.0,0.00030684,2]
[358979862,1745599878957,-542.37,0.00030684,2]
[358979863,1745599878976,-500.0,0.00030684,2]
[358979864,1745599878994,-500.0,0.00030684,2]
[358979865,1745599879012,-500.0,0.00030684,2]
[358979866,1745599879030,-4434.65419187,0.00030728,9]
[358979867,1745599879048,-218.0,0.0003076,2]
[358979868,1745599879066,-166.8159334,0.00030914,2]
[358979869,1745599879085,-666.0,0.00030957,10]
[358979870,1745599879101,-150.0,0.00030957,3]
[358979871,1745599879111,-150.0,0.00030957,3]
[358979872,1745599879121,-500.0,0.00030958,2]
[358979873,1745599879130,-500.0,0.00030958,2]
[358979874,1745599879141,-500.0,0.00030958,2]
[358979875,1745599879150,-500.0,0.00030958,2]
[358979876,1745599879160,-626.70038644,0.00030958,2]
[358979877,1745599879169,-500.0,0.00030958,2]
[358979878,1745599879179,-160.71596448,0.00030958,2]
[358979879,1745599879190,-763.89,0.00030958,2]
[358979880,1745599879200,-500.0,0.00030958,2]
[358979881,1745599879210,-500.0,0.00030958,2]
[358979882,1745599879220,-500.0,0.00030958,2]
[358979883,1745599879230,-165.16591815,0.00030958,2]
[358979884,1745599879241,-500.0,0.00030958,2]
[358979885,1745599879251,-500.0,0.00030958,2]
[358979886,1745599879260,-1235.27,0.00030958,2]
[358979887,1745599879270,-500.0,0.00030958,2]
[358979888,1745599879280,-500.0,0.00030958,2]
[358979889,1745599879290,-534.98,0.00030958,2]
[358979890,1745599879300,-500.0,0.00030958,2]
[358979891,1745599879310,-500.0,0.00030958,2]
[358979892,1745599879320,-500.0,0.00030958,2]
[358979893,1745599879330,-500.0,0.00030958,2]
[358979894,1745599879340,-500.0,0.00030958,2]
[358979895,1745599879349,-500.0,0.00030958,2]
[358979896,1745599879359,-500.0,0.00030958,2]
[358979897,1745599879369,-500.0,0.00030958,2]
[358979898,1745599879379,-527.26856441,0.00030958,2]
[358979899,1745599879389,-948.3,0.00030958,2]
[358979900,1745599879398,-500.0,0.00030958,2]
[358979901,1745599879409,-500.0,0.00030958,2]
[358979902,1745599879418,-500.0,0.00030958,2]
[358979903,1745599879428,-494.64431277,0.00030958,2]
[358979904,1745599879437,-380.66803572,0.00030958,2]
[358979905,1745599879447,-500.0,0.00030958,2]
[358979906,1745599879457,-1522.5,0.00030958,2]
[358979907,1745599879467,-500.0,0.00030958,2]
[358979908,1745599879477,-500.0,0.00030958,2]
[358979909,1745599879487,-1567.43,0.00030958,2]
[358979910,1745599879497,-530.70275393,0.00030958,2]
[358979911,1745599879507,-500.0,0.00030958,2]
[358979912,1745599879516,-168.26,0.00030958,2]
[358979913,1745599879526,-500.0,0.00030958,2]
[358979914,1745599880104,-1044.85,0.00030958,2]
[358979915,1745599880144,-500.0,0.00030958,2]
[358979916,1745599880170,-678.19,0.00030958,2]
[358979917,1745599880191,-204.78895014,0.00030958,2]
[358979918,1745599880200,-500.0,0.00030958,2]
[358979919,1745599880210,-500.0,0.00030958,2]
[358979920,1745599880220,-500.0,0.00030958,2]
[358979921,1745599880229,-500.0,0.00030958,2]
[358979922,1745599880239,-500.0,0.00030958,2]
[358979923,1745599880249,-350.29096404,0.00030958,2]
[358979924,1745599880258,-500.0,0.00030958,2]
[358979925,1745599880268,-500.0,0.00030958,2]
[358979926,1745599880278,-1000.0,0.00030958,2]
[358979927,1745599880289,-500.0,0.00030958,2]
[358979928,1745599880299,-1055.46,0.00030958,2]
[358979929,1745599880308,-1075.39,0.00030958,2]
[358979930,1745599880318,-500.0,0.00030958,2]
[358979931,1745599880328,-500.0,0.00030958,2]
[358979932,1745599880338,-500.0,0.00030958,2]
[358979933,1745599880347,-500.0,0.00030958,2]
[358979934,1745599880357,-500.0,0.00030958,2]
[358979935,1745599880367,-500.0,0.00030958,2]
[358979936,1745599880376,-525.69,0.00030958,2]
[358979937,1745599880386,-500.0,0.00030958,2]
[358979938,1745599880395,-500.0,0.00030958,2]
[358979939,1745599880405,-965.29,0.00030958,2]
[358979940,1745599880414,-500.0,0.00030958,2]
[358979941,1745599880424,-570.04,0.00030958,2]
[358979942,1745599880433,-500.0,0.00030958,2]
[358979943,1745599880443,-258.43978584,0.00030958,2]
[358979944,1745599880453,-500.0,0.00030958,2]
[358979945,1745599880464,-1144.66,0.00030958,2]
[358979946,1745599880474,-500.0,0.00030958,2]
[358979947,1745599880483,-500.0,0.00030958,2]
[358979948,1745599880492,-500.0,0.00030958,2]
[358979949,1745599880502,-154.773568,0.00030958,7]
[358979950,1745599880511,-500.0,0.00030958,2]
[358979951,1745599880521,-500.0,0.00030958,2]
[358979952,1745599880530,-500.0,0.00030958,2]
[358979953,1745599880540,-500.0,0.00030958,2]
[358979954,1745599880550,-500.0,0.00030958,2]
[358979955,1745599880559,-500.0,0.00030958,2]
[358979956,1745599880568,-500.0,0.00030958,2]
[358979957,1745599880578,-500.0,0.00030958,2]
[358979958,1745599880591,-500.0,0.00030958,2]
[358979959,1745599880600,-520.78,0.00030958,2]
[358979960,1745599880609,-152.640523,0.00030958,7]
[358979961,1745599880619,-500.0,0.00030958,2]
[358979962,1745599880628,-893.12,0.00030958,2]
[358979963,1745599880637,-1114.74,0.00030958,2]
[358979964,1745599880647,-500.0,0.00030958,2]
[358979965,1745599880656,-500.0,0.00030958,2]
[358979966,1745599880665,-500.0,0.00030958,2]
[358979967,1745599880674,-500.0,0.00030958,2]
[358979968,1745599880684,-500.0,0.00030958,2]
[358979969,1745599880695,-500.0,0.00030958,2]
[358979970,1745599880705,-500.0,0.00030958,2]
[358979971,1745599880714,-500.0,0.00030958,2]
[358979972,1745599880723,-151.0,0.00030958,7]
[358979973,1745599880733,-500.0,0.00030958,2]
[358979974,1745599880743,-987.63,0.00030958,2]
[358979975,1745599880753,-797.02,0.00030958,2]
[358979976,1745599880763,-500.0,0.00030958,2]
[358979977,1745599880772,-500.0,0.00030958,2]
[358979978,1745599880781,-845.23,0.00030958,2]
[358979979,1745599880790,-500.0,0.00030958,2]
[358979980,1745599880803,-500.0,0.00030958,2]
[358979981,1745599880813,-404.27921917,0.00030958,2]
[358979982,1745599880823,-500.0,0.00030958,2]
[358979983,1745599880832,-500.0,0.00030958,2]
[358979984,1745599880842,-500.0,0.00030958,2]
[358979985,1745599880852,-500.0,0.00030958,2]
[358979986,1745599880861,-902.14,0.00030958,2]
[358979987,1745599880870,-500.0,0.00030958,2]
[358979988,1745599880882,-500.0,0.00030958,2]
[358979989,1745599880892,-1138.72,0.00030958,2]
[358979990,1745599880901,-500.0,0.00030958,2]
[358979991,1745599880910,-500.0,0.00030958,2]
[358979992,1745599880920,-500.0,0.00030958,2]
[358979993,1745599880930,-173.153948,0.00030958,7]
[358979994,1745599880942,-966.74,0.00030958,2]
[358979995,1745599880952,-500.0,0.00030958,2]
[358979996,1745599880961,-2726.69,0.00030958,2]
[358979997,1745599880971,-173.153948,0.00030958,7]
[358979998,1745599880980,-1253.57,0.00030958,2]
[358979999,1745599880991,-500.0,0.00030958,2]
[358980000,1745599881002,-500.0,0.00030958,2]
[358980001,1745599881011,-1011.59197078,0.00030958,2]
[358980002,1745599881033,-326.21802922,0.00030958,2]
[358980003,1745599881043,-729.86,0.00030958,2]
[358980004,1745599881053,-500.0,0.00030958,2]
[358980005,1745599881062,-753.54,0.00030958,2]
[358980006,1745599881071,-151.0,0.00030958,7]
[358980007,1745599881081,-500.0,0.00030958,2]
[358980008,1745599881090,-638.94,0.00030958,2]
[358980009,1745599881099,-522.94,0.00030958,2]
[358980010,1745599881109,-500.0,0.00030958,2]
[358980011,1745599881118,-500.0,0.00030958,2]
[358980012,1745599881127,-500.0,0.00030958,2]
[358980013,1745599881136,-500.0,0.00030958,2]
[358980014,1745599881146,-500.0,0.00030958,2]
[358980015,1745599881155,-1023.5,0.00030958,2]
[358980016,1745599881165,-503.04,0.00030958,2]
[358980017,1745599881174,-781.42,0.00030958,2]
[358980018,1745599881184,-500.0,0.00030958,2]
[358980019,1745599881194,-500.0,0.00030958,2]
[358980020,1745599881204,-500.0,0.00030958,2]
[358980021,1745599881215,-500.0,0.00030958,2]
[358980022,1745599881227,-560.54,0.00030958,2]
[358980023,1745599881237,-621.44,0.00030958,2]
[358980024,1745599881246,-500.0,0.00030958,2]
[358980025,1745599881256,-614.21,0.00030958,2]
[358980026,1745599881265,-1103.29,0.00030958,2]
[358980027,1745599881275,-924.67,0.00030958,2]
[358980028,1745599881285,-500.0,0.00030958,2]
[358980029,1745599881294,-2174.39,0.00030958,2]
[358980030,1745599881303,-500.0,0.00030958,2]
[358980031,1745599881313,-500.0,0.00030958,2]
[358980032,1745599881323,-500.0,0.00030958,2]
[358980033,1745599881332,-618.66,0.00030958,2]
[358980034,1745599881342,-1022.7,0.00030958,2]
[358980035,1745599881351,-1010.9,0.00030958,2]
[358980036,1745599881361,-500.0,0.00030958,2]
[358980037,1745599881371,-609.11625058,0.00030958,2]
[358980038,1745599881381,-793.11,0.00030958,2]
[358980039,1745599881391,-500.0,0.00030958,2]
[358980040,1745599881402,-688.14514345,0.00030958,2]
[358980041,1745599881417,-445.73485655,0.00030958,2]
[358980042,1745599881426,-870.76,0.00030958,2]
[358980043,1745599881436,-1068.57,0.00030958,2]
[358980044,1745599881448,-593.05,0.00030958,2]
[358980045,1745599881457,-500.0,0.00030958,2]
[358980046,1745599881467,-500.0,0.00030958,2]
[358980047,1745599881476,-500.0,0.00030958,2]
[358980048,1745599881487,-98.6235089,0.00030958,2]
[358980049,1745599881499,-858.6964911,0.00030958,2]
[358980050,1745599881509,-500.0,0.00030958,2]
[358980051,1745599881518,-41.3035089,0.00030958,2]
[358980052,1745599881538,-583.6964911,0.00030958,2]
[358980053,1745599881548,-664.41,0.00030958,2]
[358980054,1745599881558,-250.86274519,0.00030958,2]
[358980055,1745599881567,-525.37,0.00030958,2]
[358980056,1745599881576,-584.17,0.00030958,2]
[358980057,1745599881586,-500.0,0.00030958,2]
[358980058,1745599881595,-933.52,0.00030958,2]
[358980059,1745599881604,-522.59,0.00030958,2]
[358980060,1745599881614,-881.92,0.00030958,2]
[358980061,1745599881623,-500.0,0.00030958,2]
[358980062,1745599881632,-500.0,0.00030958,2]
[358980063,1745599881642,-500.0,0.00030958,2]
[358980064,1745599881651,-952.28,0.00030958,2]
[358980065,1745599881661,-760.95,0.00030958,2]
[358980066,1745599881671,-500.0,0.00030958,2]
[358980067,1745599881680,-523.49,0.00030958,2]
[358980068,1745599881689,-813.21,0.00030958,2]
[358980069,1745599881699,-500.0,0.00030958,2]
[358980070,1745599881709,-500.0,0.00030958,2]
[358980071,1745599881718,-1101.22,0.00030958,2]
[358980072,1745599881727,-882.98,0.00030958,2]
[358980073,1745599881736,-500.0,0.00030958,2]
[358980074,1745599881747,-500.0,0.00030958,2]
[358980075,1745599881757,-1642.986175,0.00030958,2]
[358980076,1745599881768,-500.0,0.00030958,2]
[358980077,1745599881778,-500.0,0.00030958,2]
[358980078,1745599881788,-754.68,0.00030958,2]
[358980079,1745599881803,-500.0,0.00030958,2]
[358980080,1745599881813,-169.31978834,0.00030958,2]
[358980081,1745599881825,-500.0,0.00030958,2]
[358980082,1745599881838,-334.43553343,0.00030958,2]
[358980083,1745599881849,-653.44,0.00030958,2]
[358980084,1745599881859,-758.04,0.00030958,2]
[358980085,1745599881868,-500.0,0.00030958,2]
[358980086,1745599881879,-523.73,0.00030958,2]
[358980087,1745599881888,-500.0,0.00030958,2]
[358980088,1745599881897,-793.45,0.00030958,2]
[358980089,1745599881907,-747.79,0.00030958,2]
[358980090,1745599881916,-1653.303149,0.00030958,2]
[358980091,1745599881925,-1097.7,0.00030958,2]
[358980092,1745599881934,-516.15,0.00030958,2]
[358980093,1745599881944,-500.0,0.00030958,2]
[358980094,1745599881954,-500.0,0.00030958,2]
[358980095,1745599881963,-838.33,0.00030958,2]
[358980096,1745599881973,-801.35,0.00030958,2]
[358980097,1745599881982,-886.75,0.00030958,2]
[358980098,1745599881991,-500.0,0.00030958,2]
[358980099,1745599882002,-963.57,0.00030958,2]
[358980100,1745599882011,-906.14,0.00030958,2]
[358980101,1745599882021,-596.75,0.00030958,2]
[358980102,1745599882030,-151.0,0.00030958,7]
[358980103,1745599882039,-539.38,0.00030958,2]
[358980104,1745599882049,-500.0,0.00030958,2]
[358980105,1745599882059,-500.0,0.00030958,2]
[358980106,1745599882069,-519.52,0.00030958,2]
[358980107,1745599882079,-571.05,0.00030958,2]
[358980108,1745599882089,-500.0,0.00030958,2]
[358980109,1745599882098,-500.0,0.00030958,2]
[358980110,1745599882108,-725.26,0.00030958,2]
[358980111,1745599882117,-500.0,0.00030958,2]
[358980112,1745599882128,-1036.47,0.00030958,2]